[Event "Silver Lake Festival 2022"]
[Site "Veliko Gradiste"]
[Date "2022.06.20"]
[Round "2.5"]
[White "Damljanovic, Branko"]
[Black "Herega, Nejc"]
[Result "1-0"]
[ECO "A38"]
[WhiteElo "2469"]
[BlackElo "2160"]
[Annotator "TA"]
[PlyCount "129"]
[EventDate "2022.06.16"]
[EventType "swiss"]
[EventCountry "SRB"]
[SourceTitle "playchess.com"]
[Source "ChessBase"]
[SourceQuality "1"]
[TimeControl "5400+30"]

{[%evp 15,129,34,27,0,0,-6,-9,-37,31,37,41,43,39,32,50,36,37,0,82,32,49,52,68,59,68,68,67,69,68,68,68,68,70,66,59,61,60,53,58,58,59,58,58,58,58,58,65,67,92,92,92,92,92,4,92,85,92,89,105,105,163,163,163,136,1048,802,1124,1045,1281,1285,1147,1262,1221,1210,1157,804,944,903,6215,2200,29959,29960,29957,29962,29959,29960,29957,29951,29943,29943,9714,6359,29959,6262,29963,29965,29962,29965,29970,29973,29973,29974,29983,29984,29984,29985,29987,29988,29989,29988,29990,29989,29989,29990,29991,29992]} 1. Nf3 {[%emt 0:14:02]} Nf6 {[%emt 0:00:27]} 2. c4 {[%emt 0:00:07]} c5 {[%emt 0:00:25]} 3. Nc3 {[%emt 0:00:07]} Nc6 {[%emt 0:00:38]} 4. g3 {[%emt 0:00:09]} g6 {[%emt 0:00:36]} 5. Bg2 {[%emt 0:00:03]} Bg7 {[%emt 0:00:32]} 6. d4 {[%emt 0:00:03]} cxd4 {[%emt 0:00:25]} 7. Nxd4 {[%emt 0:00:02]} O-O {[%emt 0:00:19]} 8. Nc2 {[%emt 0:03:24]} d6 {[%emt 0:01:14]} 9. Bd2 {[%emt 0:01:54] A38: Symmetrical English vs ...g6: 4 Bg2 Bg7 5 Nf3 Nf6.} Be6 {[%emt 0:07:22]} 10. Ne3 {[%emt 0:00:10] [#]} Rc8 $146 {[%emt 0:03:36]} ({Predecessor:} 10... Qd7 11. h3 Rab8 12. a4 a6 13. Rb1 Nd4 14. Ncd5 b5 15. cxb5 Nxd5 16. Nxd5 axb5 {0-1 (49) Bartholomew,J (2451)-Stukopin,A (2558) Brownsville 2016}) 11. b3 {[%emt 0:00:59] The position is equal.} Ng4 {[%emt 0:05:07]} (11... Qd7 $1 $15) 12. Nxg4 {[%emt 0:07:38]} Bxg4 {[%emt 0:00:07]} 13. h3 {[%emt 0:00:31]} Be6 {[%emt 0:10:47]} 14. O-O {[%emt 0:00:09]} b6 {[%emt 0:04:15]} 15. e3 {[%emt 0:00:55]} a6 {[%emt 0:08:15]} 16. Qe2 {[%emt 0:01:24]} Rc7 {[%emt 0:08:49]} (16... Qd7 $11 {remains equal.}) 17. Rfc1 {[%emt 0:04:05]} (17. Rac1 $16) 17... Qb8 {[%emt 0:02:13]} 18. Rab1 {[%emt 0:00:30]} Rfc8 {[%emt 0:01:39][%cal Ob6b5]} 19. Nd5 {[%emt 0:03:13]} Bxd5 {[%emt 0:07:43]} 20. cxd5 {[%emt 0:07:58][%mdl 64] Discovered Attack} Ne5 {[%emt 0:02:21]} 21. Qxa6 {[%emt 0:26:15]} Rxc1+ {[%emt 0:11:43]} 22. Rxc1 {[%emt 0:00:57]} Rxc1+ {[%emt 0:01:29]} 23. Bxc1 {[%emt 0:00:05]} Qc7 $1 {[%emt 0:00:19]} 24. Bb2 {[%emt 0:00:49]} Nf3+ {[%emt 0:01:37][%mdl 64] Discovered Attack} 25. Bxf3 {[%emt 0:00:03]} Bxb2 $14 {[%emt 0:00:08][%mdl 4096] Endgame KQB-KQB} 26. Be2 {[%emt 0:02:34]} Kg7 {[%emt 0:01:46]} 27. Bc4 {[%emt 0:01:48]} Bc3 {[%emt 0:01:31]} 28. Kf1 {[%emt 0:06:40]} h5 {[%emt 0:02:08]} 29. Kg2 {[%emt 0:02:56]} Qc5 {[%emt 0:01:59]} 30. Qb7 {[%emt 0:03:55]} Bf6 {[%emt 0:01:39]} 31. a4 {[%emt 0:01:10]} h4 {[%emt 0:01:55]} 32. g4 {[%emt 0:00:43]} Qb4 {[%emt 0:00:58]} 33. Qc6 {[%emt 0:02:06]} Be5 {[%emt 0:01:12][%cal Oe5g3]} 34. Kf1 {[%emt 0:01:00]} (34. Qb5 $1 $16 {[%cal Rb5b4]} Qxb5 35. Bxb5) 34... Bc3 {[%emt 0:02:07]} (34... Bh2 $1 $11) 35. Qb5 {[%emt 0:02:28]} Qxb5 {[%emt 0:03:07]} 36. Bxb5 $16 {[%emt 0:00:01] KB-KB} g5 {[%emt 0:00:10]} 37. Ke2 {[%emt 0:00:11]} e5 {[%emt 0:03:01]} (37... f5 $16 {is a better defense.}) 38. dxe6 $1 $18 {[%emt 0:04:22]} fxe6 {[%emt 0:00:02]} 39. Kd3 {[%emt 0:00:45]} Be5 {[%emt 0:00:38][%mdl 8192] This costs Black the game.} (39... Be1 $16) 40. b4 {[%emt 0:00:22][%cal Bb3b4,Bb4a5,Ba5a6][%mdl 32]} d5 {[%emt 0:01:02]} 41. a5 {[%emt 0:00:01]} bxa5 {[%emt 0:00:30]} 42. bxa5 {[%emt 0:00:02]} Kf6 {[%emt 0:01:49]} 43. a6 {[%emt 0:00:36] a7 would kill now.} Bb8 {[%emt 0:00:02] [#]} 44. f4 $1 {[%emt 0:05:18]} Ba7 {[%emt 0:01:31]} 45. Bc6 {[%emt 0:00:00]} Bb6 {[%emt 0:01:20]} 46. Ke2 {[%emt 0:00:00]} d4 {[%emt 0:01:16]} 47. exd4 {[%emt 0:00:00]} (47. fxg5+ $142 Kxg5 48. exd4) 47... Bxd4 {[%emt 0:01:16]} 48. Kd3 {[%emt 0:00:00]} Bg1 {[%emt 0:00:28]} 49. fxg5+ {[%emt 0:00:00]} Kxg5 {[%emt 0:00:01]} 50. Bd7 {[%emt 0:00:00]} Kf6 {[%emt 0:00:28]} 51. Bc8 {[%emt 0:00:00]} Ke5 {[%emt 0:01:03]} 52. Kc4 {[%emt 0:00:00]} Kd6 {[%emt 0:00:45]} 53. Kb5 {[%emt 0:01:25]} Bf2 {[%emt 0:00:22] [#]} 54. Bxe6 $1 {[%emt 0:00:57][%mdl 512] Intending Bc4 and mate.} Kxe6 {[%emt 0:00:26] KB-K3P} 55. Kc6 {[%emt 0:00:01] White mates.} Ke5 {[%emt 0:00:24]} 56. Kb7 {[%emt 0:00:02]} Kf4 {[%emt 0:00:10]} 57. a7 {[%emt 0:00:03]} Bxa7 {[%emt 0:00:25]} 58. Kxa7 {[%emt 0:00:02] KPP-KP} Kg3 {[%emt 0:00:21]} 59. g5 {[%emt 0:00:06]} Kxh3 {[%emt 0:00:04] KP-KP} 60. g6 {[%emt 0:00:03]} Kh2 {[%emt 0:01:09]} 61. g7 {[%emt 0:00:12]} h3 {[%emt 0:00:20]} 62. g8=Q {[%emt 0:00:09]} Kh1 {[%emt 0:00:06]} 63. Qd5+ {[%emt 0:00:06]} Kg1 {[%emt 0:00:05]} 64. Qd4+ {[%emt 0:00:08]} Kg2 {[%emt 0:00:10]} 65. Qg4+ {[%emt 0:00:05] Weighted Error Value: White=0.10 (very precise) /Black=0.50} 1-0

[Event "Silver Lake Festival 2022"]
[Site "Veliko Gradiste"]
[Date "2022.06.20"]
[Round "2.6"]
[White "Creanga, Robert-Ionut"]
[Black "Mohammad Nubairshah Shaikh"]
[Result "0-1"]
[ECO "B47"]
[WhiteElo "2201"]
[BlackElo "2443"]
[Annotator "TA"]
[PlyCount "88"]
[EventDate "2022.06.16"]
[EventType "swiss"]
[EventCountry "SRB"]
[SourceTitle "playchess.com"]
[Source "ChessBase"]
[SourceQuality "1"]
[TimeControl "5400+30"]

{[%evp 9,88,26,43,16,12,0,0,0,0,16,9,7,21,16,29,20,16,5,32,33,27,22,23,20,53,44,45,48,35,0,11,0,0,-105,-107,-306,-137,-135,-149,-128,-151,-136,-143,-170,-178,-172,-156,-227,-225,-222,-222,-222,-221,-218,-219,-213,-212,-202,-210,-267,-267,-281,-268,-315,-289,-303,-296,-343,-335,-395,-398,-500,-460,-644,-617,-857,-840,-1764,-1701,-1525,-1309]} 1. e4 {[%emt 0:00:05]} c5 {[%emt 0:08:32]} 2. Nf3 {[%emt 0:01:51]} e6 {[%emt 0:00:02]} 3. d4 {[%emt 0:00:12]} cxd4 {[%emt 0:00:03]} 4. Nxd4 {[%emt 0:00:10]} Nc6 {[%emt 0:00:05]} 5. Nc3 {[%emt 0:03:11]} Qc7 {[%emt 0:00:08]} 6. Qd3 {[%emt 0:02:07] B47: Sicilian: Taimanov: 5 Nc3 Qc7 6 f4, 6 g3 and 6 Be2.} Nf6 {[%emt 0:05:32]} 7. Ndb5 {[%emt 0:07:09]} Qb8 {[%emt 0:00:36]} 8. Qg3 {[%emt 0:01:25] The position is equal.} d6 $1 {[%emt 0:00:05]} 9. Be3 {[%emt 0:08:08]} a6 {[%emt 0:05:07]} 10. Nd4 {[%emt 0:00:47]} Bd7 {[%emt 0:02:06]} 11. Bd3 $36 {[%emt 0:09:00][%mdl 2048] White has the initiative.} h5 {[%emt 0:03:04] [#]} 12. h3 $146 {[%emt 1:02:25]} ({Predecessor:} 12. f4 b5 13. h3 Nxd4 14. Bxd4 b4 15. Nb1 Bc6 16. Nd2 Qb7 17. Qf3 Be7 18. O-O {1-0 (45) Deac,B (2625)-Alexakis,D (2450) Chess.com INT 2020}) 12... h4 {[%emt 0:03:33]} 13. Qf3 {[%emt 0:00:00]} Ne5 {[%emt 0:05:17]} 14. Qd1 {[%emt 0:00:00]} b5 {[%emt 0:04:11]} 15. a3 {[%emt 0:00:00]} Be7 {[%emt 0:01:31]} 16. O-O {[%emt 0:00:00]} Nc4 {[%emt 0:03:31]} 17. Bxc4 {[%emt 0:00:00]} bxc4 {[%emt 0:00:23]} 18. Rb1 {[%emt 0:00:00]} Qb7 {[%emt 0:05:48]} 19. Qf3 {[%emt 0:00:00]} Rc8 {[%emt 0:00:06]} 20. Rfd1 {[%emt 0:00:00]} Rh5 {[%emt 0:05:50]} 21. Nde2 {[%emt 0:00:00] [#]} (21. Bd2 $11) 21... Bc6 $1 $17 {[%emt 0:20:32][%cal Oh5f5] Threatens to win with ...Rf5!} 22. Bd4 $2 {[%emt 0:00:00] [#] This move loses the game for White.} (22. Nd4 $17) 22... Bxe4 {[%emt 0:09:50]} (22... Rf5 $3 $19 {[%mdl 512] and Black stays clearly on top.} 23. Qe3 Nxe4) 23. Nxe4 {[%emt 0:00:00]} Qxe4 {[%emt 0:00:02]} 24. Qxe4 {[%emt 0:00:00]} Nxe4 {[%emt 0:00:02]} 25. f3 {[%emt 0:00:00]} Nf6 {[%emt 0:00:29] Black is more active.} 26. b4 {[%emt 0:00:00]} cxb3 {[%emt 0:03:36]} 27. cxb3 {[%emt 0:00:00]} Rd5 {[%emt 0:02:45]} 28. Rdc1 {[%emt 0:00:41]} (28. Kf1 $17) 28... Rxc1+ $19 {[%emt 0:04:43]} 29. Rxc1 {[%emt 0:00:06]} e5 {[%emt 0:00:01]} 30. Bf2 {[%emt 0:00:35]} Rd3 {[%emt 0:00:36]} 31. Bxh4 {[%emt 0:02:16]} Rxb3 {[%emt 0:00:01]} 32. Ng3 {[%emt 0:01:59]} g6 {[%emt 0:02:56]} 33. Bxf6 {[%emt 0:01:09]} Bxf6 {[%emt 0:05:57][%mdl 4096] Endgame KRB-KRN} 34. Ne4 {[%emt 0:01:18]} Be7 {[%emt 0:00:00]} 35. Rd1 {[%emt 0:00:20]} Rb6 {[%emt 0:00:00]} ({Wrong is} 35... Rxa3 $2 36. Nxd6+ Bxd6 37. Rxd6 $19) 36. Nc3 {[%emt 0:01:17]} Kd7 {[%emt 0:00:00]} 37. Nd5 {[%emt 0:01:09]} Rb3 {[%emt 0:00:00]} 38. a4 {[%emt 0:01:09]} Bd8 {[%emt 0:00:00]} 39. Kh2 {[%emt 0:00:53]} Ke6 {[%emt 0:00:00]} 40. f4 {[%emt 0:00:32]} e4 {[%emt 0:00:00] And now ...e3 would win. Black is clearly winning.} 41. f5+ {[%emt 0:00:33]} Kxf5 {[%emt 0:00:27]} 42. a5 {[%emt 0:00:16]} Ke5 {[%emt 0:00:30] Strongly threatening ...Rd3.} 43. Nb6 {[%emt 0:00:25]} Bxb6 {[%emt 0:00:02]} 44. axb6 {[%emt 0:00:09]} Rxb6 {[%emt 0:04:31] Weighted Error Value: White=0.47/Black=0.07 (flawless)} 0-1

[Event "Silver Lake Festival 2022"]
[Site "Veliko Gradiste"]
[Date "2022.06.20"]
[Round "2.7"]
[White "Radovanovic, Nikola"]
[Black "Phatak Aanjaneya"]
[Result "1-0"]
[ECO "C42"]
[WhiteElo "2423"]
[BlackElo "2145"]
[Annotator "TA"]
[PlyCount "93"]
[EventDate "2022.06.16"]
[EventType "swiss"]
[EventCountry "SRB"]
[SourceTitle "playchess.com"]
[Source "ChessBase"]
[SourceQuality "1"]
[TimeControl "5400+30"]

{[%evp 10,93,8,7,14,-28,-24,-41,-36,-63,-35,-37,-22,-36,-20,-24,-14,-18,10,-19,0,-28,26,-19,52,46,35,35,39,47,66,64,87,112,150,53,299,292,286,283,280,291,283,293,297,300,297,133,118,88,247,256,449,441,422,425,407,441,406,74,697,675,1441,804,806,807,654,471,417,0,806,785,2585,794,783,768,877,873,1145,1043,1115,1109,1079,1033,2161,1670]} 1. e4 {[%emt 0:03:43]} e5 {[%emt 0:00:14]} 2. Nf3 {[%emt 0:00:16]} Nf6 {[%emt 0:00:06]} 3. Nxe5 {[%emt 0:03:08]} d6 {[%emt 0:00:06]} 4. Nc4 {[%emt 0:00:23]} Nxe4 {[%emt 0:00:08]} 5. Qe2 {[%emt 0:00:07]} Qe7 {[%emt 0:00:04]} 6. Ne3 {[%emt 0:00:16] Strongly threatening Nd5.} Nc6 {[%emt 0:00:06] C42: Petroff Defence: 3 Nxe5 and unusual White 3rd moves.} 7. b3 {[%emt 0:13:10]} Be6 {[%emt 0:12:51]} 8. Bb2 {[%emt 0:00:58]} d5 {[%emt 0:01:35] [#] Black is slightly better.} 9. d3 $146 {[%emt 0:17:11]} ({Predecessor:} 9. g3 h5 10. d3 Nf6 11. Nd2 O-O-O 12. Bg2 h4 13. O-O-O Qc5 14. Kb1 Qa5 15. f4 {0-1 (27) Shuvalova,P (2454)-Kashlinskaya,A (2494) Chess.com INT 2020}) 9... Nf6 {[%emt 0:03:53] And now ...d4 would win.} (9... Nd6 $5 {[%cal Rd5d4]} 10. d4 O-O-O $15) 10. d4 $1 {[%emt 0:00:36]} Qd7 {[%emt 0:06:12]} 11. Nd2 {[%emt 0:02:50]} Be7 {[%emt 0:02:38]} 12. h3 {[%emt 0:01:16]} O-O {[%emt 0:01:22]} 13. g4 {[%emt 0:07:38][%cal Bg2g4,Bg4g5][%mdl 32]} Qd6 {[%emt 0:19:23]} 14. Qf3 {[%emt 0:07:35]} Rad8 {[%emt 0:03:17]} 15. c3 {[%emt 0:03:22]} Rfe8 {[%emt 0:01:47]} (15... Nb8 $142) 16. Bd3 {[%emt 0:00:30]} Bf8 {[%emt 0:01:55]} (16... Na5 $11) 17. g5 {[%emt 0:03:40]} Nd7 {[%emt 0:00:47]} 18. O-O-O {[%emt 0:04:07]} a5 {[%emt 0:01:11]} 19. h4 {[%emt 0:04:57]} a4 {[%emt 0:00:14]} 20. h5 {[%emt 0:00:47] White is more active.} (20. bxa4 Nb6 $15) (20. Qh5 g6 21. Qf3 a3 $11) (20. Nf5 Bxf5 21. Qxf5 g6 $11) 20... axb3 {[%emt 0:01:02]} 21. axb3 {[%emt 0:00:07]} Ra8 {[%emt 0:05:12]} 22. Kb1 $40 {[%emt 0:10:52][%mdl 128] White attacks.} (22. Nf5 Bxf5 23. Qxf5 g6 $16) ({Better is} 22. Rdg1 $16) 22... b5 $2 {[%emt 0:17:05]} ({Black should play} 22... Ne7 $14) 23. Nf5 $1 $18 {[%emt 0:03:31]} (23. Bxb5 Reb8 24. Bd3 Nd8 $16) 23... Bxf5 {[%emt 0:00:45]} 24. Qxf5 {[%emt 0:00:06][%csl Gd3][%cal Rf5h7]} g6 {[%emt 0:00:24]} 25. hxg6 {[%emt 0:01:20]} hxg6 {[%emt 0:00:22] [#]} 26. Rh8+ $3 {[%emt 0:01:37][%mdl 512]} Kxh8 {[%emt 0:00:44]} 27. Qxf7 {[%emt 0:00:10] White wants to mate with Rh1+.} Qh2 {[%emt 0:01:17] Inhibits Rh1.} 28. Qxd7 {[%emt 0:00:52]} (28. Qxd5 $18 {is the precise move to win. aiming for Rh1.} Ne7 29. Qxd7) 28... Ne7 $16 {[%emt 0:00:54]} 29. Qg4 {[%emt 0:02:04][%mdl 1024] White has strong compensation.} (29. Qxb5 $6 c6 30. Qb7 Qd6 $11) 29... Qd6 $2 {[%emt 0:03:54]} (29... Qh5 $16 {was necessary.} 30. Qxh5+ gxh5) 30. Nf3 $18 {[%emt 0:02:18]} (30. Bxb5 $6 c6 31. Bd3 Kg8 $16) 30... Nc6 $2 {[%emt 0:03:40]} (30... Qa6 $2 31. Rh1+ Kg8 32. Bxb5 $1 $18 {[%mdl 512]}) (30... Kg8 {might work better.} 31. Ne5 Bg7) 31. Rh1+ {[%emt 0:01:00][%cal Bd1h1,Bh1h3,Bh3f3][%mdl 32]} Kg8 {[%emt 0:00:11]} 32. Qh3 {[%emt 0:00:50][%csl Gh1][%cal Rh3h7]} Bg7 {[%emt 0:00:46]} 33. Qh7+ {[%emt 0:00:35]} Kf7 {[%emt 0:00:06] ...Rh8 is the strong threat.} 34. Nh4 $2 {[%emt 0:00:59] Really sharp!} (34. Rh6 Re6 35. Rh4 (35. Bxb5 $2 Qf4 $19) 35... Rh8 36. Ne5+ Nxe5 37. Rf4+ Ke8 38. Qxg7 (38. Bxb5+ $2 Nc6 $19) 38... Rh1+ 39. Kc2 Nxd3 40. Qg8+ Kd7 41. Rf7+ Re7 $19) (34. Rh4 $1 $18 {and the rest is easy.}) 34... Re6 $2 {[%emt 0:01:11][%mdl 8192] [#]} (34... Rh8 $16 35. Qxg6+ (35. Bxg6+ $2 Kf8 $19) 35... Qxg6 36. Bxg6+ Kg8) 35. Rh3 $1 {[%emt 0:00:55]} Qf4 {[%emt 0:08:37] ( -> ...Re1+)} 36. Bxg6+ {[%emt 0:00:50]} Kf8 {[%emt 0:02:18]} 37. Rf3 {[%emt 0:01:54]} Re1+ {[%emt 0:00:05]} 38. Kc2 {[%emt 0:00:05]} Re2+ {[%emt 0:00:04]} 39. Kb1 {[%emt 0:00:34]} (39. Kd1 $142 Qxf3 40. Nxf3 Rxb2 41. Bc2) 39... Re1+ {[%emt 0:00:10] [#]} 40. Bc1 $1 {[%emt 0:02:39][%mdl 512] White is clearly winning.} Rxc1+ {[%emt 0:01:28]} 41. Kb2 {[%emt 0:00:04]} Qxf3 {[%emt 0:00:30]} 42. Nxf3 {[%emt 0:00:06]} Rca1 {[%emt 0:01:49]} 43. Bb1 {[%emt 0:00:37] Hoping for Qf5+.} b4 {[%emt 0:00:58]} 44. Qf5+ {[%emt 0:00:51]} Ke7 {[%emt 0:00:02]} 45. Qg6 {[%emt 0:00:21]} bxc3+ {[%emt 0:00:07]} 46. Kxc3 {[%emt 0:00:11]} Rxb1 {[%emt 0:01:19]} 47. Qxg7+ {[%emt 0:00:12] Weighted Error Value: White=0.41/Black=0.67} 1-0